bitfinex/quotes_BTCUSD_20241101
["timestamp","ask_amount","ask_price","bid_price","bid_amount"]
[1730486302018,0.15880302,69490.0,69489.0,0.14045525]
[1730486302230,0.15880302,69490.0,69489.0,0.14145525]
[1730486302682,0.15880302,69490.0,69489.0,0.14045525]
[1730486302872,0.16180302,69490.0,69489.0,0.14045525]
[1730486303118,0.16180302,69490.0,69489.0,0.13845525]
[1730486303562,0.16180302,69490.0,69489.0,0.14045525]
[1730486304217,0.15880302,69490.0,69489.0,0.14045525]
[1730486304664,0.15880302,69490.0,69489.0,0.13945525]
[1730486304872,0.145537,69490.0,69489.0,0.14145525]
[1730486305085,0.15882075,69490.0,69489.0,0.14145525]
[1730486305773,0.87191593,69490.0,69489.0,0.003]
[1730486306180,0.73783958,69490.0,69489.0,0.001]
[1730486306397,0.73783958,69490.0,69489.0,0.003]
[1730486306398,0.80150662,69490.0,69489.0,0.003]
[1730486306625,0.6643971,69490.0,69489.0,0.003]
[1730486306838,0.6643971,69490.0,69489.0,0.001]
[1730486307257,0.7078381,69490.0,69489.0,0.001]
[1730486307678,0.6653971,69490.0,69489.0,0.001]
[1730486307920,0.6653971,69490.0,69478.0,0.21553582]
[1730486307921,0.418828,69479.0,69478.0,0.21553582]
[1730486308128,0.65290435,69479.0,69478.0,0.21553582]
[1730486308342,0.66619451,69479.0,69478.0,0.21553582]
[1730486308573,0.143934,69476.0,69475.0,0.00082]
[1730486308779,0.15722416,69476.0,69475.0,0.00082]
[1730486309436,0.15721821,69476.0,69475.0,0.00082]
[1730486310121,0.25721821,69476.0,69475.0,0.00082]
[1730486310349,0.25721821,69476.0,69475.0,0.00282]
[1730486311911,0.25721314,69476.0,69475.0,0.00282]
[1730486312991,0.39149428,69476.0,69475.0,0.00282]
[1730486314670,0.39149428,69476.0,69454.0,0.21553582]
[1730486314671,0.323757,69465.0,69454.0,0.21553582]
[1730486314882,0.143978,69455.0,69454.0,0.21553582]
[1730486315107,0.29133349,69455.0,69454.0,0.35399107]
[1730486315343,0.29133349,69455.0,69450.0,0.00082]
[1730486315344,0.143986,69451.0,69450.0,0.00082]
[1730486315565,0.143986,69451.0,69450.0,0.13927525]
[1730486316050,0.15724465,69451.0,69450.0,0.13927525]
[1730486317443,0.15724465,69451.0,69450.0,0.15327525]
[1730486317667,0.15724465,69451.0,69450.0,0.16627525]
[1730486317878,0.01325865,69451.0,69450.0,0.20590278]
[1730486318329,0.15724465,69451.0,69450.0,0.20590278]
[1730486318971,0.143986,69451.0,69450.0,0.20590278]
[1730486319196,0.15722733,69451.0,69450.0,0.18927525]
[1730486319677,0.15722733,69451.0,69450.0,0.16627525]
[1730486325899,0.143986,69451.0,69450.0,0.16627525]
[1730486327916,0.15722841,69451.0,69450.0,0.16627525]
[1730486329570,0.143986,69451.0,69450.0,0.16627525]
[1730486331390,0.27806235,69451.0,69450.0,0.16627525]
[1730486331658,0.36981495,69451.0,69450.0,0.16627525]
[1730486331843,0.1572386,69451.0,69450.0,0.16627525]
[1730486332635,0.1572386,69451.0,69450.0,0.15227525]
[1730486333066,0.1572386,69451.0,69450.0,0.16427525]
[1730486333289,0.1572386,69451.0,69450.0,0.15127525]
[1730486333739,0.1572386,69451.0,69450.0,0.16227525]
[1730486338827,0.143986,69451.0,69450.0,0.16227525]
[1730486339038,0.15727895,69451.0,69450.0,0.16227525]
[1730486340580,0.33847895,69451.0,69450.0,0.02382]
[1730486340782,0.53047895,69451.0,69450.0,0.02382]
[1730486341436,0.70885305,69451.0,69450.0,0.01182]
[1730486341664,0.5747767,69451.0,69450.0,0.01182]
[1730486341890,0.5747767,69451.0,69450.0,0.01782]
[1730486342097,0.53048748,69451.0,69450.0,0.01782]
[1730486342325,0.25728748,69451.0,69450.0,0.15027525]
[1730486342757,0.25728748,69451.0,69450.0,0.15427525]
[1730486343018,0.01330148,69451.0,69450.0,0.17727525]
[1730486343233,0.01330148,69451.0,69450.0,0.16627525]
[1730486343430,0.01330148,69451.0,69450.0,0.17127525]
[1730486343638,0.01330148,69451.0,69450.0,0.31526325]
[1730486343843,0.01330148,69451.0,69450.0,0.39938768]
[1730486344055,0.01330148,69451.0,69450.0,0.25139968]
[1730486344265,0.01330148,69451.0,69450.0,0.25339968]
[1730486344487,0.01330148,69451.0,69450.0,0.26039968]
[1730486344695,0.01330148,69451.0,69450.0,0.27139968]
[1730486345121,0.15728748,69451.0,69450.0,0.17127525]
[1730486345341,0.15728748,69451.0,69450.0,0.16227525]
[1730486345544,0.15728748,69451.0,69450.0,0.13927525]
[1730486346380,0.15728748,69451.0,69450.0,0.16227525]
[1730486346809,0.15728748,69451.0,69450.0,0.15127525]
[1730486347436,0.15728748,69451.0,69450.0,0.13927525]
[1730486347656,0.15728748,69451.0,69450.0,0.14727525]
[1730486347866,0.15728748,69451.0,69450.0,0.14827525]
[1730486348288,0.15728748,69451.0,69450.0,0.14327525]
[1730486348494,0.15728748,69451.0,69450.0,0.14727525]
[1730486349358,0.15728748,69451.0,69450.0,0.14327525]
[1730486349790,0.15728748,69451.0,69450.0,0.14627525]
[1730486350896,0.30168131,69451.0,69450.0,0.00782]
[1730486351105,0.34418112,69451.0,69450.0,0.00282]
[1730486351339,0.70595766,69451.0,69450.0,0.00282]
[1730486351561,0.57188131,69451.0,69450.0,0.00282]
[1730486351800,0.66483788,69451.0,69450.0,0.00282]
[1730486352045,0.67814922,69451.0,69450.0,0.00582]
[1730486352260,0.67814931,69451.0,69450.0,0.00582]
[1730486352473,0.67814931,69451.0,69450.0,0.003]
[1730486352474,0.67817521,69451.0,69450.0,0.003]
[1730486352680,0.57189126,69451.0,69450.0,0.003]
[1730486352893,0.57188532,69451.0,69450.0,0.005]
[1730486353106,0.57188532,69451.0,69450.0,0.003]
[1730486353107,0.69147467,69451.0,69450.0,0.003]
[1730486353314,0.57188519,69451.0,69450.0,0.003]
[1730486353530,0.144021,69434.0,69433.0,0.21553582]
[1730486353735,0.15732636,69434.0,69433.0,0.35399107]
[1730486354146,0.15732636,69434.0,69433.0,0.13845525]
[1730486354877,0.15832636,69434.0,69433.0,0.15245525]
[1730486355772,0.20220214,69434.0,69433.0,0.15245525]
[1730486355946,0.15831493,69434.0,69433.0,0.15245525]
[1730486356337,0.15831493,69434.0,69433.0,0.028]
[1730486356756,0.15731493,69434.0,69433.0,0.014]
[1730486357192,0.288069,69428.0,69423.0,0.00216058]
[1730486357349,0.144042,69424.0,69423.0,0.00216058]
[1730486357548,0.15733593,69424.0,69423.0,0.00216058]
[1730486358183,0.15733593,69424.0,69409.0,0.2697]
[1730486358184,0.01329393,69424.0,69409.0,0.0803]
[1730486358383,0.144063,69414.0,69405.0,0.00163]
[1730486358617,0.15735693,69414.0,69405.0,0.00163]
[1730486358781,0.01329393,69414.0,69413.0,0.13845525]
[1730486358985,0.15735693,69414.0,69413.0,0.13845525]
[1730486359641,0.15735693,69414.0,69413.0,0.15245525]
[1730486360203,0.01329393,69414.0,69413.0,0.60546578]
[1730486360402,0.288091,69423.0,69416.0,0.023]
[1730486360623,0.30135362,69422.0,69421.0,0.13845525]
[1730486360824,0.44539962,69422.0,69421.0,0.13845525]
[1730486362221,0.44539962,69422.0,69421.0,0.15245525]
[1730486363307,0.44639412,69422.0,69421.0,0.16645525]
[1730486363729,0.43314,69422.0,69421.0,0.16645525]
[1730486366863,0.44638765,69422.0,69421.0,0.16645525]
[1730486367278,0.15829365,69422.0,69421.0,0.26280078]
[1730486368412,0.15829365,69422.0,69421.0,0.24615525]
[1730486368633,0.15829365,69422.0,69421.0,0.16645525]
[1730486368858,0.15829365,69422.0,69421.0,0.16727625]
[1730486372879,0.01424765,69422.0,69421.0,0.16727625]
[1730486373121,0.001,69422.0,69421.0,0.6548006]
[1730486373371,0.001,69422.0,69421.0,0.82609086]
[1730486373801,0.001,69422.0,69421.0,0.81209086]
[1730486374013,0.288063,69430.0,69422.0,0.023]
[1730486374227,0.144035,69428.0,69424.0,0.023]
[1730486374444,0.144036,69427.0,69426.0,0.023]
[1730486374677,0.144046,69422.0,69421.0,0.077821]
[1730486374885,0.1573118,69422.0,69421.0,0.100821]
[1730486375100,0.1573118,69422.0,69421.0,0.000821]
[1730486375318,0.1573118,69422.0,69421.0,0.15327625]
[1730486375524,0.1573118,69422.0,69421.0,0.13927625]
[1730486375758,0.144046,69422.0,69421.0,0.15327625]
[1730486375996,0.144046,69422.0,69421.0,0.16727625]
[1730486376200,0.144046,69422.0,69421.0,0.13927625]
[1730486376620,0.144046,69422.0,69421.0,0.15327625]
[1730486377543,0.144046,69422.0,69421.0,0.16427625]
[1730486378891,0.144046,69422.0,69421.0,0.15027625]
[1730486379115,0.144046,69422.0,69421.0,0.16327625]
[1730486382106,0.33043392,69438.0,69422.0,0.023]
[1730486382429,0.50357982,69434.0,69432.0,0.13845525]
[1730486382625,0.144021,69434.0,69433.0,0.023]
[1730486382838,0.144021,69434.0,69433.0,0.13845525]
[1730486383064,0.7410684,69422.0,69421.0,0.17089735]
[1730486383291,0.7410684,69422.0,69421.0,0.17498709]
[1730486383541,0.70215659,69422.0,69421.0,0.31344234]
[1730486383747,0.21717782,69450.0,69432.0,0.01]
[1730486383988,0.287981,69449.0,69442.0,0.13407635]
[1730486384228,0.287981,69449.0,69437.0,0.13407635]
[1730486384443,0.143995,69447.0,69438.0,0.01340764]
[1730486384966,0.0132876,69446.0,69439.0,0.023]
[1730486385204,0.01328679,69446.0,69443.0,0.13845525]
[1730486385406,0.144,69444.0,69443.0,0.13845525]
[1730486385629,0.15727777,69444.0,69443.0,0.15364154]
[1730486386328,0.287981,69449.0,69443.0,0.15364154]
[1730486386565,0.0132741,69448.0,69444.0,0.288001]
[1730486386791,0.0132741,69448.0,69445.0,0.3279175]
[1730486387499,0.14399,69449.0,69445.0,0.3279175]
[1730486387719,0.01326884,69448.0,69445.0,0.3279175]
[1730486387956,0.14399,69449.0,69445.0,0.3279175]
[1730486388191,0.14399,69449.0,69445.0,0.3279165]
[1730486388420,0.14399,69449.0,69446.0,0.06311088]
[1730486388661,0.14399,69449.0,69447.0,0.13845525]
[1730486388893,0.145631,69450.0,69447.0,0.13845525]
[1730486389096,0.145631,69450.0,69447.0,0.28244925]
[1730486389305,0.145631,69450.0,69447.0,0.13845525]
[1730486389306,0.145632,69450.0,69447.0,0.13845525]
[1730486389515,0.143991,69449.0,69447.0,0.13845525]
[1730486389721,0.143991,69449.0,69448.0,0.06591008]
[1730486389946,0.143991,69449.0,69448.0,0.13845525]
[1730486390589,0.15724641,69449.0,69448.0,0.13845525]
[1730486391506,0.143991,69449.0,69448.0,0.13845525]
[1730486391720,0.226191,69449.0,69448.0,0.13845525]
[1730486391938,0.23944054,69449.0,69448.0,0.13845525]
[1730486392140,0.23944054,69449.0,69448.0,0.16345525]
[1730486393028,0.24108454,69449.0,69448.0,0.16345525]
[1730486394145,0.227835,69449.0,69448.0,0.16345525]
[1730486395707,0.227835,69449.0,69448.0,0.025]
[1730486397172,0.24108182,69449.0,69448.0,0.025]
[1730486397666,0.15888182,69449.0,69448.0,0.16345525]
[1730486397864,0.01489082,69449.0,69448.0,0.15145525]
[1730486398066,0.001644,69449.0,69448.0,0.4525236]
[1730486398282,0.001644,69449.0,69448.0,0.17345525]
[1730486398497,0.001644,69449.0,69448.0,0.25390761]
[1730486398709,0.145634,69449.0,69448.0,0.24190761]
[1730486398894,0.001644,69449.0,69448.0,0.37289961]
[1730486399127,0.001644,69449.0,69448.0,0.39789961]
[1730486400650,0.001644,69449.0,69448.0,0.23090761]
[1730486400905,0.145634,69449.0,69448.0,0.23090761]
[1730486401367,0.145634,69449.0,69448.0,0.16345525]
[1730486402016,0.15888005,69449.0,69448.0,0.16345525]
[1730486402684,0.15887971,69449.0,69448.0,0.16345525]
[1730486402918,0.24127971,69449.0,69448.0,0.16345525]
[1730486403364,0.228034,69449.0,69448.0,0.025]
[1730486403568,0.24127834,69449.0,69448.0,0.025]
[1730486403767,0.228034,69449.0,69448.0,0.025]
[1730486404619,0.228034,69449.0,69448.0,0.013]
[1730486405039,0.228034,69449.0,69448.0,0.012]
[1730486405295,0.447393,69449.0,69448.0,0.012]
[1730486405493,0.328034,69449.0,69448.0,0.004]
[1730486405712,0.328034,69449.0,69448.0,0.006]
[1730486406141,0.184044,69449.0,69437.0,0.21553582]
[1730486406387,0.287985,69448.0,69438.0,0.13845525]
[1730486406603,0.119011,69439.0,69438.0,0.13845525]
[1730486408787,0.119011,69439.0,69438.0,0.14745525]
[1730486409355,0.119011,69439.0,69438.0,0.15645525]
[1730486409557,0.119011,69439.0,69438.0,0.14745525]
[1730486409762,0.119011,69439.0,69438.0,0.13845525]
[1730486409968,0.119011,69439.0,69438.0,0.14645525]
[1730486410380,0.119011,69439.0,69438.0,0.008]
[1730486410745,0.201911,69439.0,69438.0,0.008]
[1730486410954,0.301911,69439.0,69438.0,0.008]
[1730486411168,0.495011,69439.0,69438.0,0.016]
[1730486411375,0.495011,69439.0,69438.0,0.008]
[1730486411603,0.6334883,69439.0,69438.0,0.012]
[1730486412039,0.6334883,69439.0,69438.0,0.004]
[1730486412260,0.6334883,69439.0,69423.0,0.21553582]
[1730486412261,0.144042,69424.0,69423.0,0.21553582]
[1730486412466,0.144042,69424.0,69423.0,0.35399107]
[1730486412878,0.144042,69424.0,69423.0,0.13845525]
[1730486414485,0.144042,69424.0,69423.0,0.15945525]
[1730486417753,0.1,69431.0,69423.0,0.15945525]
[1730486417979,0.144042,69424.0,69423.0,0.021]
[1730486418544,0.144042,69424.0,69423.0,0.011]
[1730486418745,0.144042,69424.0,69422.0,0.000822]
[1730486418746,0.288078,69426.0,69422.0,0.000822]
[1730486418947,0.144034,69428.0,69423.0,0.37499107]
[1730486419215,0.365832,69437.0,69423.0,0.37499107]
[1730486419216,0.1,69435.0,69423.0,0.30349825]
[1730486419519,0.288025,69439.0,69424.0,0.00288051]
[1730486419744,0.144034,69428.0,69425.0,0.13845525]
[1730486421095,0.288062,69430.0,69425.0,0.13845525]
[1730486421344,0.288062,69430.0,69426.0,0.04023743]
[1730486421573,0.144036,69428.0,69427.0,0.13845525]
[1730486422297,0.221936,69428.0,69427.0,0.13845525]
[1730486422836,0.23521368,69428.0,69427.0,0.13845525]
[1730486423078,0.23521368,69428.0,69427.0,0.14545525]
[1730486424113,0.221936,69428.0,69427.0,0.15245525]
[1730486424312,0.211936,69428.0,69427.0,0.15245525]
[1730486424502,0.23849612,69428.0,69427.0,0.15245525]
[1730486424680,0.22521606,69428.0,69427.0,0.15245525]
[1730486425435,0.22521606,69428.0,69427.0,0.16778297]
[1730486426057,0.14731606,69428.0,69427.0,0.15245525]
[1730486427077,0.01328006,69428.0,69427.0,0.15245525]
[1730486427228,0.01328006,69428.0,69427.0,0.29649125]
[1730486427428,0.288044,69434.0,69427.0,0.29649125]
[1730486427429,0.01328006,69431.0,69427.0,0.17545525]
[1730486427635,0.144024,69433.0,69427.0,0.037]
[1730486427836,0.01328809,69430.0,69429.0,0.144032]
[1730486428232,0.288021,69440.0,69429.0,0.023]
[1730486428374,0.144008,69441.0,69436.0,0.144017]
[1730486428574,0.01329555,69440.0,69436.0,0.144017]
[1730486428807,0.01329555,69440.0,69437.0,0.13845525]
[1730486428988,0.01329555,69440.0,69438.0,0.08585563]
[1730486429181,0.15730455,69440.0,69439.0,0.13845525]
[1730486429804,0.15730455,69440.0,69439.0,0.16145525]
[1730486429805,0.01329555,69440.0,69439.0,0.16145525]
[1730486430007,0.001644,69449.0,69448.0,0.143992]
[1730486430374,0.001644,69449.0,69448.0,0.31984645]
[1730486430951,0.001644,69449.0,69448.0,0.4539228]
[1730486431720,0.001644,69449.0,69448.0,0.4679228]
[1730486432128,0.001644,69449.0,69448.0,0.33384645]
[1730486432326,0.001644,69449.0,69448.0,0.34784645]
[1730486432529,0.001644,69449.0,69448.0,0.33384645]
[1730486432955,0.001644,69449.0,69448.0,0.34784645]
[1730486433567,0.001644,69449.0,69448.0,0.33384645]
[1730486433993,0.001644,69449.0,69448.0,0.34784645]
[1730486434206,0.001644,69449.0,69448.0,0.33384645]
[1730486434398,0.001644,69449.0,69448.0,0.34784645]
[1730486434972,0.001644,69449.0,69448.0,0.36184645]
[1730486436639,0.145634,69449.0,69448.0,0.19485445]
[1730486437529,0.145634,69449.0,69448.0,0.18045525]
[1730486437530,0.15890757,69449.0,69448.0,0.18045525]
[1730486438059,0.145634,69449.0,69448.0,0.18045525]
[1730486438282,0.15890638,69449.0,69448.0,0.15245525]
[1730486438494,0.15890638,69449.0,69448.0,0.16145525]
[1730486438700,0.15890638,69449.0,69448.0,0.023]
[1730486439047,0.144009,69440.0,69439.0,0.21553582]
[1730486439195,0.144009,69440.0,69439.0,0.35399107]
[1730486439406,0.144009,69440.0,69439.0,0.13845525]
[1730486440811,0.144009,69440.0,69439.0,0.14945525]
[1730486441453,0.144009,69440.0,69439.0,0.16145525]
[1730486441666,0.21553582,69456.0,69439.0,0.17760078]
[1730486441899,0.01492567,69449.0,69442.0,0.2725316]
[1730486442098,0.01492567,69449.0,69443.0,0.00287974]
[1730486442236,0.143995,69447.0,69444.0,0.13845525]
[1730486442441,0.15727767,69446.0,69445.0,0.02955316]
[1730486442639,0.15727767,69446.0,69445.0,0.16800841]
[1730486444322,0.15727767,69446.0,69445.0,0.17800841]
[1730486445110,0.143996,69446.0,69445.0,0.17800841]
[1730486445307,0.15728569,69446.0,69445.0,0.18700841]
[1730486445493,0.17057635,69446.0,69445.0,0.15745525]
[1730486445694,0.15728666,69446.0,69445.0,0.15745525]
[1730486450006,0.53128666,69446.0,69445.0,0.019]
[1730486450763,0.53128666,69446.0,69445.0,0.009]
[1730486450953,0.57385477,69446.0,69445.0,0.009]
[1730486451193,0.144021,69434.0,69433.0,0.21553582]
[1730486451343,0.23521166,69434.0,69433.0,0.35399107]
[1730486451757,0.23521166,69434.0,69433.0,0.13845525]
[1730486453200,0.23521166,69434.0,69433.0,0.14145525]
[1730486453751,0.23521166,69434.0,69433.0,0.14245525]
[1730486454357,0.23521166,69434.0,69433.0,0.13945525]
[1730486454797,0.23521166,69434.0,69433.0,0.14045525]
[1730486455849,0.23522191,69434.0,69433.0,0.14045525]
[1730486456072,0.221921,69434.0,69433.0,0.14045525]
[1730486456730,0.24852133,69434.0,69433.0,0.14045525]
[1730486457122,0.64478356,69434.0,69433.0,0.002]
[1730486457348,0.53352133,69434.0,69433.0,0.002]
[1730486460399,0.53352133,69434.0,69433.0,1e-06]
[1730486461536,0.1,69433.0,69428.0,0.000821]
[1730486461738,0.244032,69429.0,69428.0,0.000821]
[1730486462176,0.25731881,69429.0,69428.0,0.000821]
[1730486462346,0.51756411,69429.0,69423.0,0.000821]
[1730486462559,0.51756411,69429.0,69421.0,1e-06]
[1730486462560,0.244046,69422.0,69421.0,1e-06]
[1730486462774,0.409877,69407.0,69400.0,4e-05]
[1730486462984,0.65724016,69407.0,69400.0,4e-05]
[1730486463188,0.244079,69406.0,69400.0,4e-05]
[1730486463421,0.27775679,69406.0,69400.0,4e-05]
[1730486464866,0.27775679,69406.0,69405.0,0.00663]
[1730486465073,0.27775679,69406.0,69405.0,0.01163]
[1730486465290,0.26446998,69406.0,69405.0,0.01163]
[1730486465512,0.26446998,69406.0,69400.0,4e-05]
[1730486465513,0.144081,69405.0,69404.0,1e-06]
[1730486465729,0.38140718,69405.0,69404.0,1e-06]
[1730486466495,0.24409,69401.0,69400.0,1e-06]
[1730486466699,0.33485135,69401.0,69400.0,1e-06]
[1730486468377,0.33785135,69401.0,69400.0,1e-06]
[1730486468626,0.34000247,69401.0,69400.0,1e-06]
[1730486468826,0.35324213,69401.0,69400.0,1e-06]
[1730486471390,0.33882966,69401.0,69400.0,1e-06]
[1730486472186,0.32559,69401.0,69400.0,1e-06]
[1730486472388,0.3388193,69401.0,69400.0,1e-06]
[1730486473393,0.1613193,69401.0,69400.0,0.13845625]
[1730486474259,0.1573193,69401.0,69400.0,0.13845625]
[1730486474691,0.2573193,69401.0,69400.0,0.14645625]
[1730486475586,0.2573193,69401.0,69400.0,0.14327725]
[1730486476121,0.24409,69401.0,69400.0,0.14327725]
[1730486476331,0.257339,69401.0,69400.0,0.14327725]
[1730486476532,0.257339,69401.0,69400.0,0.13927725]
[1730486476727,0.257339,69401.0,69400.0,0.14327725]
[1730486476940,0.157339,69401.0,69400.0,0.14727725]
[1730486477157,0.157339,69401.0,69400.0,0.14327725]
[1730486477399,0.157339,69401.0,69400.0,0.13927725]
[1730486477597,0.157339,69401.0,69400.0,0.14727725]
[1730486478055,0.157339,69401.0,69400.0,0.13927725]
[1730486478292,0.230706,69401.0,69400.0,0.14327725]
[1730486478532,0.230706,69401.0,69400.0,0.004822]
[1730486478741,0.58187925,69401.0,69400.0,0.004822]
[1730486478966,0.6377029,69401.0,69400.0,0.004822]
[1730486479201,0.599606,69401.0,69400.0,0.004822]
[1730486479396,0.59961843,69401.0,69400.0,0.004822]
[1730486479637,0.59961843,69401.0,69400.0,0.000822]
[1730486480074,0.59961843,69401.0,69400.0,1e-06]
[1730486480692,0.60761843,69401.0,69400.0,1e-06]
[1730486484554,0.60763949,69401.0,69400.0,1e-06]
[1730486486693,0.594357,69401.0,69400.0,1e-06]
[1730486487100,0.60765259,69401.0,69400.0,1e-06]
[1730486488264,0.60765259,69401.0,69400.0,0.000823]
[1730486488466,0.60931302,69401.0,69400.0,0.000823]
[1730486489323,0.74776827,69401.0,69400.0,1e-06]
[1730486489525,0.323212,69390.0,69389.0,0.000821]
[1730486489725,0.53174237,69390.0,69389.0,0.000821]
[1730486489936,0.51843035,69390.0,69389.0,0.000821]
[1730486490499,0.45728835,69390.0,69389.0,0.000821]
[1730486490877,0.63888835,69390.0,69389.0,0.003821]
[1730486491329,0.65220712,69390.0,69389.0,0.003821]
[1730486491478,0.69652458,69390.0,69389.0,0.003821]
[1730486492178,0.7190836,69390.0,69389.0,0.007821]
[1730486492422,0.76026742,69390.0,69389.0,0.007821]
[1730486492603,0.76026742,69390.0,69389.0,0.000821]
[1730486493187,0.76526742,69390.0,69389.0,0.000821]
[1730486493401,0.29098979,69390.0,69389.0,0.001821]
[1730486493607,0.16843077,69390.0,69389.0,0.14027625]
[1730486494838,0.16343077,69390.0,69389.0,0.14027625]
[1730486495261,0.16343077,69390.0,69389.0,0.14527625]
[1730486495666,0.15743077,69390.0,69389.0,0.13927625]
[1730486496053,0.15743077,69390.0,69389.0,0.14927625]
[1730486496305,0.25743077,69390.0,69389.0,0.010821]
[1730486496485,0.38304618,69390.0,69389.0,0.005821]
[1730486496871,0.25743077,69390.0,69389.0,0.010821]
[1730486497025,0.25745181,69390.0,69389.0,0.010821]
[1730486497224,0.3019231,69390.0,69389.0,0.010821]
[1730486497457,0.28858329,69390.0,69389.0,0.010821]
[1730486499452,0.38321359,69390.0,69389.0,0.010821]
[1730486499612,0.52169089,69390.0,69389.0,0.010821]
[1730486500231,0.50836059,69390.0,69389.0,0.005821]
[1730486500664,0.52236059,69390.0,69389.0,0.006821]
[1730486500865,0.52236059,69390.0,69389.0,0.005821]
[1730486500866,0.50836059,69390.0,69389.0,0.005821]
[1730486501194,0.3775733,69390.0,69381.0,0.21553582]
[1730486501472,0.37820535,69382.0,69381.0,0.21553582]
[1730486501688,0.43600135,69382.0,69381.0,0.21553582]
[1730486501825,0.244131,69381.0,69380.0,0.00163]
[1730486502039,0.301927,69381.0,69380.0,0.00163]
[1730486502498,0.301927,69381.0,69380.0,1e-06]
[1730486502499,0.74717915,69381.0,69380.0,1e-06]
[1730486502680,0.74717915,69381.0,69374.0,1e-06]
[1730486502681,0.144144,69375.0,69374.0,1e-06]
[1730486502883,0.43601635,69375.0,69374.0,1e-06]
[1730486503283,0.42269164,69375.0,69374.0,1e-06]
[1730486504200,0.42269164,69375.0,69371.0,0.00163]
[1730486504201,0.0783,69374.0,69371.0,0.00163]
[1730486504399,0.24416,69367.0,69357.0,0.21553582]
[1730486504728,0.33117022,69367.0,69357.0,0.21553582]
[1730486504942,0.28863129,69367.0,69357.0,0.21553582]
[1730486505603,0.33117022,69367.0,69366.0,23.15591109]
[1730486505831,0.37370915,69367.0,69366.0,23.15591109]
[1730486506312,0.28863129,69367.0,69366.0,23.15491109]
[1730486506532,0.50489081,69367.0,69366.0,23.15491109]
[1730486506750,0.44110859,69367.0,69366.0,23.15491109]
[1730486507185,0.30263129,69367.0,69366.0,23.15491109]
[1730486507433,0.25816,69367.0,69366.0,23.15491109]
[1730486507668,0.27216,69367.0,69366.0,23.15491109]
[1730486507889,0.31643914,69367.0,69366.0,23.15491109]
[1730486508119,0.35895505,69367.0,69366.0,23.15491109]
[1730486508354,0.49743235,69367.0,69366.0,23.15491109]
[1730486509222,0.45491644,69367.0,69366.0,23.15491109]
[1730486509916,0.31643914,69367.0,69366.0,23.15491109]
[1730486510155,0.17216,69367.0,69366.0,23.15491109]
[1730486510704,0.17216,69367.0,69366.0,23.15573309]
[1730486510916,0.15816,69367.0,69366.0,23.29418834]
[1730486511114,0.14416,69367.0,69366.0,23.29418834]
[1730486511320,0.15816,69367.0,69366.0,23.29418834]
[1730486511759,0.14416,69367.0,69366.0,23.29418834]
[1730486511975,0.15816,69367.0,69366.0,23.29418834]
[1730486512189,0.15916,69367.0,69366.0,23.37188834]
[1730486513097,0.14516,69367.0,69366.0,23.37188834]
[1730486513552,0.14516,69367.0,69366.0,23.37288834]
[1730486513792,0.001,69367.0,69366.0,23.37288834]
[1730486514059,0.001,69367.0,69366.0,23.86012764]
[1730486514961,0.144144,69375.0,69370.0,0.144154]
[1730486515178,0.288283,69377.0,69371.0,0.13845525]
[1730486515439,0.144147,69374.0,69371.0,0.13845525]
[1730486515654,0.01329621,69373.0,69371.0,0.1964399]
[1730486515875,0.144148,69373.0,69371.0,0.1964399]
[1730486516101,0.01329621,69372.0,69371.0,0.1964399]
[1730486516741,0.144148,69373.0,69371.0,0.1964399]
[1730486517472,0.144148,69373.0,69371.0,0.2044399]
[1730486517473,0.145148,69373.0,69371.0,0.2044399]
[1730486517680,0.145148,69373.0,69372.0,0.03715969]
[1730486517886,0.001,69373.0,69372.0,0.28260525]
[1730486518090,0.001,69373.0,69372.0,0.13845525]
[1730486518573,0.002,69373.0,69372.0,0.28260525]
[1730486518769,0.002,69373.0,69372.0,0.13845525]
[1730486518988,0.001,69373.0,69372.0,0.13845525]
[1730486519225,0.144146,69374.0,69372.0,0.19136966]
[1730486519367,0.144146,69374.0,69373.0,0.13845525]
[1730486519779,0.01329285,69376.0,69373.0,0.13845525]
[1730486519980,0.01329285,69376.0,69373.0,0.28260325]
[1730486520320,0.01329285,69376.0,69373.0,0.13845525]
[1730486520517,0.27922235,69374.0,69373.0,0.14345525]
[1730486520689,0.38768445,69374.0,69373.0,0.14345525]
[1730486520893,0.27922235,69374.0,69373.0,0.13845525]
[1730486521098,0.244148,69373.0,69372.0,0.007]
[1730486521474,0.1,69372.0,69367.0,0.21553582]
[1730486521723,0.144158,69368.0,69367.0,0.21553582]
[1730486521943,0.14416,69367.0,69366.0,23.15577321]
[1730486522165,0.15744701,69367.0,69366.0,23.29422846]
[1730486523483,0.14516,69367.0,69366.0,23.29922846]
[1730486523702,0.15844907,69367.0,69366.0,23.29422846]
[1730486524156,0.01428907,69367.0,69366.0,23.29622846]
[1730486524786,0.15844907,69367.0,69366.0,23.29622846]
[1730486525712,0.01428907,69367.0,69366.0,23.29622846]
[1730486526347,0.01428907,69367.0,69366.0,23.29922846]
[1730486526767,0.15844907,69367.0,69366.0,23.29922846]
[1730486527010,0.01428907,69367.0,69366.0,23.29922846]
[1730486527220,0.01428907,69367.0,69366.0,23.36644489]
[1730486527221,0.001,69367.0,69366.0,23.36644489]
[1730486527420,0.14516,69367.0,69366.0,23.36644489]
[1730486527635,0.01428907,69367.0,69366.0,23.29922846]
[1730486527849,0.01428907,69367.0,69366.0,23.54729046]
[1730486528002,0.001,69367.0,69366.0,23.54729046]
[1730486528633,0.001,69367.0,69366.0,23.54429046]
[1730486529441,0.14516,69367.0,69366.0,23.37712846]
[1730486529805,0.14516,69367.0,69366.0,23.30022846]
[1730486529806,0.15847418,69367.0,69366.0,23.30022846]
[1730486530005,0.15947418,69367.0,69366.0,23.30622846]
[1730486530754,0.15847418,69367.0,69366.0,23.30022846]
[1730486531174,0.15847418,69367.0,69366.0,23.30322846]
[1730486531596,0.15847418,69367.0,69366.0,23.30222846]
[1730486532010,0.01431418,69367.0,69366.0,23.30722846]
[1730486532464,0.01431418,69367.0,69366.0,23.30222846]
[1730486532760,0.001,69367.0,69366.0,23.30722846]
[1730486532965,0.001,69367.0,69366.0,23.38402846]
[1730486533195,0.01431418,69367.0,69366.0,23.55119046]
[1730486533411,0.144151,69372.0,69366.0,23.53750576]
[1730486533631,0.01330861,69371.0,69368.0,0.13845525]
[1730486534049,0.144156,69369.0,69368.0,0.13845525]
[1730486534256,0.15746461,69369.0,69368.0,0.13845525]
[1730486534728,0.01330861,69369.0,69368.0,0.13845525]